bitfinex/quotes_ETHUSD_20250602
["timestamp","ask_amount","ask_price","bid_price","bid_amount"]
[1748861742566,8.8316,2484.6,2484.3,4.02526006]
[1748861742880,10.47379112,2484.6,2484.3,4.02526006]
[1748861743258,10.47379112,2484.6,2484.2,4.02535713]
[1748861743446,10.47379112,2484.6,2484.2,4.02534103]
[1748861744876,10.47379112,2484.6,2484.3,4.02517197]
[1748861745765,10.47379112,2484.6,2484.4,4.02510433]
[1748861745965,10.47379112,2484.6,2484.3,4.02518048]
[1748861746465,10.47379112,2484.6,2484.0,5.9812]
[1748861746766,10.47379112,2484.6,2484.1,4.02560283]
[1748861747291,10.47379112,2484.6,2484.3,4.02521118]
[1748861749753,10.47379112,2484.6,2484.4,4.02509597]
[1748861749949,0.8226,2484.8,2484.3,4.929]
[1748861750154,0.8226,2485.0,2484.8,4.02439224]
[1748861750377,8.8226,2485.0,2484.8,4.02439224]
[1748861752189,8.8226,2485.0,2484.7,4.0245644]
[1748861752385,8.8226,2485.0,2484.8,4.02444352]
[1748861753793,8.8226,2485.0,2484.7,4.02455365]
[1748861753994,8.8226,2485.0,2484.8,4.02445399]
[1748861755472,8.8226,2485.0,2484.7,4.02451448]
[1748861756286,8.8226,2485.0,2484.8,4.02445091]
[1748861757008,8.8226,2485.0,2484.7,4.02452883]
[1748861760204,8.8226,2485.0,2484.8,4.0244537]
[1748861761306,8.8226,2485.0,2484.7,4.02450212]
[1748861761597,8.8226,2485.0,2484.8,4.02446338]
[1748861761999,3.56564347,2484.9,2484.7,4.02456505]
[1748861762703,3.56564347,2484.9,2484.8,4.02446877]
[1748861764806,3.56564347,2484.9,2484.7,4.02453081]
[1748861765804,3.56564347,2484.9,2484.7,4.02453353]
[1748861766908,0.8226,2485.0,2484.8,4.02446877]
[1748861767111,0.8046,2485.4,2484.8,0.50914688]
[1748861767311,0.8046,2485.4,2485.1,4.02390655]
[1748861767616,3.56564347,2485.3,2485.1,4.02390655]
[1748861768211,3.56564347,2485.3,2484.9,4.107]
[1748861768412,3.56564347,2485.3,2485.1,4.02398049]
[1748861769315,3.56564347,2485.3,2485.1,4.02398181]
[1748861772919,11.56564347,2485.3,2485.2,4.02382102]
[1748861774033,8.0,2485.6,2485.2,0.22604841]
[1748861774208,12.107,2485.6,2485.3,4.02356225]
[1748861774533,12.107,2485.6,2485.4,4.02349521]
[1748861775002,12.107,2485.6,2485.3,4.02356683]
[1748861775205,3.56564347,2485.5,2485.3,4.02356683]
[1748861775403,11.56564347,2485.5,2485.4,4.02349722]
[1748861776213,11.56564347,2485.5,2485.3,4.02358669]
[1748861776404,11.56564347,2485.5,2485.3,4.02355392]
[1748861780152,8.0,2485.5,2485.4,4.02349722]
[1748861780472,4.39314347,2485.4,2485.0,4.02405099]
[1748861780783,3.56564347,2485.1,2485.0,4.02405099]
[1748861781048,3.56564347,2485.1,2485.0,4.24990471]
[1748861781199,3.56564347,2485.1,2485.0,4.24990663]
[1748861781398,3.56564347,2485.1,2485.0,4.24992366]
[1748861781602,3.56564347,2485.1,2485.0,4.24992375]
[1748861781830,3.56564347,2485.1,2485.0,4.02405099]
[1748861782043,3.56564347,2485.1,2485.0,4.24992647]
[1748861782241,3.56564347,2485.1,2485.0,4.24992584]
[1748861782620,3.56564347,2485.1,2485.0,4.2499255]
[1748861782938,3.56564347,2485.1,2485.0,4.24992697]
[1748861783143,3.56564347,2485.1,2485.0,4.24992709]
[1748861783642,3.56564347,2485.3,2485.1,4.02385862]
[1748861785231,3.56564347,2485.3,2485.1,4.02393105]
[1748861785544,3.56564347,2485.3,2485.2,4.02382102]
[1748861786608,3.56564347,2485.3,2485.1,4.02389818]
[1748861787357,3.56564347,2485.3,2485.1,4.02384724]
[1748861787507,4.39314347,2485.4,2485.2,4.02382102]
[1748861787707,12.39314347,2485.4,2485.2,4.02382102]
[1748861789522,12.39314347,2485.4,2485.1,4.02390306]
[1748861790550,12.39314347,2485.4,2485.0,4.0240514]
[1748861790751,12.39314347,2485.4,2484.9,5.08925102]
[1748861790752,3.56564347,2485.2,2484.8,4.02439742]
[1748861790956,3.56564347,2485.0,2484.8,4.0244295]
[1748861791425,3.56564347,2485.0,2484.9,0.38571304]
[1748861791631,3.56564347,2485.0,2484.9,0.38572381]
[1748861791864,11.56564347,2485.0,2484.9,0.38572381]
[1748861792161,12.80181782,2485.0,2484.8,4.02446719]
[1748861792379,11.56564347,2485.0,2484.8,4.02446719]
[1748861792729,11.56564347,2485.0,2484.7,4.02452981]
[1748861793447,11.56564347,2485.0,2484.8,4.02446371]
[1748861793856,8.0,2485.0,2484.8,4.02446371]
[1748861794467,8.0,2485.0,2484.7,4.02454116]
[1748861794685,8.0,2485.0,2484.6,5.08870447]
[1748861794994,8.0,2485.0,2484.7,4.41032018]
[1748861795170,8.0,2485.0,2484.7,4.02456508]
[1748861795331,11.56564347,2485.0,2484.6,5.0887014]
[1748861795527,11.56564347,2485.0,2484.7,0.38575916]
[1748861795837,11.56564347,2485.0,2484.7,4.02461615]
[1748861796244,11.56564347,2485.0,2484.6,1.064]
[1748861796456,11.56564347,2485.0,2484.7,0.38576154]
[1748861796660,11.56564347,2485.0,2484.7,4.02462886]
[1748861796989,11.56564347,2485.0,2484.6,5.08870476]
[1748861797183,11.56564347,2485.0,2484.7,0.38575712]
[1748861797332,11.56564347,2485.0,2484.6,5.08870476]
[1748861797663,11.56564347,2485.0,2484.7,0.38571884]
[1748861797868,13.21231782,2485.0,2484.6,4.02471385]
[1748861798069,13.21231782,2485.0,2484.7,0.38572097]
[1748861798274,13.21231782,2485.0,2484.6,4.02471385]
[1748861798569,13.21231782,2485.0,2484.7,0.38572149]
[1748861798737,13.21231782,2485.0,2484.6,4.02471385]
[1748861798936,13.21231782,2485.0,2484.7,0.38568867]
[1748861799162,13.21231782,2485.0,2484.7,4.02463055]
[1748861799532,13.21231782,2485.0,2484.5,5.08889445]
[1748861799744,13.21231782,2485.0,2484.7,4.02461679]
[1748861800770,13.21231782,2485.0,2484.6,4.02473597]
[1748861801071,13.21231782,2485.0,2484.7,4.41020263]
[1748861801233,13.21231782,2485.0,2484.7,4.02456939]
[1748861801974,13.21231782,2485.0,2484.6,4.02469676]
[1748861802172,8.7749,2484.6,2484.1,0.7988]
[1748861802473,3.56564347,2484.2,2484.0,4.02564257]
[1748861802833,3.56564347,2484.2,2483.8,1.064]
[1748861803035,3.56564347,2484.0,2483.9,0.38548952]
[1748861803373,4.74973121,2484.0,2483.8,5.09006866]
[1748861803958,4.74973121,2484.0,2483.8,5.08997597]
[1748861804157,4.74973121,2484.0,2483.9,4.02592696]
[1748861804367,0.41218774,2484.0,2483.8,5.08999356]
[1748861804558,12.80719782,2484.2,2483.8,5.08999777]
[1748861805243,1.69121978,2484.1,2483.8,5.08999777]
[1748861806253,1.69121978,2484.1,2483.8,5.09007134]
[1748861807597,2.09918093,2484.1,2483.8,5.09007134]
[1748861808786,2.09918093,2484.1,2483.8,1.064]
[1748861808787,3.56564347,2484.0,2483.8,1.064]
[1748861809278,7.67064347,2484.0,2483.8,1.064]
[1748861809486,0.97698244,2483.9,2483.8,1.064]
[1748861811969,0.97698244,2483.9,2483.5,4.0264965]
[1748861811970,9.72848244,2483.9,2483.5,4.0264965]
[1748861812170,3.56564347,2483.8,2483.5,4.0264965]
[1748861813300,3.56564347,2483.8,2483.3,5.84662863]
[1748861813301,3.56564347,2483.8,2483.4,4.02663746]
[1748861813499,3.56564347,2483.6,2483.3,4.02682863]
[1748861813967,3.56564347,2483.4,2483.1,1.075]
[1748861814164,3.56564347,2483.4,2483.1,5.10214313]
[1748861814353,3.56564347,2483.4,2483.2,4.02703475]
[1748861814568,8.0,2483.5,2483.1,5.10212683]
[1748861814754,8.0,2483.5,2483.2,4.02693058]
[1748861817063,3.56564347,2483.4,2483.2,4.02693058]
[1748861817269,3.56564347,2483.4,2483.1,5.10212996]
[1748861817469,3.56564347,2483.4,2483.2,4.02705754]
[1748861820187,3.56564347,2483.4,2483.1,5.10215706]
[1748861820494,3.56564347,2483.4,2483.1,5.10210243]
[1748861820697,3.56564347,2483.4,2483.2,4.02706044]
[1748861821410,3.56564347,2483.4,2483.2,4.02699729]
[1748861821764,8.0,2483.5,2483.3,4.02680065]
[1748861821955,8.0,2483.5,2483.1,1.075]
[1748861822155,4.105,2483.7,2483.3,4.02676875]
[1748861822397,1.64778435,2483.6,2483.3,4.02676875]
[1748861822687,4.105,2483.7,2483.3,4.02681632]
[1748861822878,4.105,2483.7,2483.3,4.02689968]
[1748861823074,4.105,2483.7,2483.2,4.80279554]
[1748861823278,4.105,2483.7,2483.4,4.02664589]
[1748861823593,2.965,2484.2,2483.7,4.02618653]
[1748861823594,4.35154347,2484.2,2483.7,4.02618653]
[1748861823817,0.7859,2484.2,2483.7,4.02625115]
[1748861823963,4.105,2484.3,2483.9,4.02583344]
[1748861824162,4.105,2484.3,2483.7,4.02619587]
[1748861824163,3.56564347,2484.0,2483.7,4.02619587]
[1748861825772,3.56564347,2483.8,2483.2,4.8352593]
[1748861825995,3.56564347,2483.8,2483.4,4.02671226]
[1748861826196,8.0,2483.7,2483.2,0.8082]
[1748861826396,8.0,2483.7,2483.4,4.02671398]
[1748861826695,8.64191114,2483.7,2483.4,4.02671398]
[1748861827821,8.64191114,2483.7,2483.3,4.02686929]
[1748861828022,8.64191114,2483.7,2483.4,4.02665981]
[1748861829421,8.64191114,2483.7,2483.4,4.02659595]
[1748861829589,8.0,2483.7,2483.4,4.02666264]
[1748861829924,4.9095,2484.0,2483.6,4.02627346]
[1748861830120,0.7732,2484.3,2483.9,4.02579067]
[1748861830419,8.7732,2484.3,2483.9,4.02579067]
[1748861831009,8.0,2484.1,2483.6,4.8595]
[1748861831322,8.0,2484.1,2483.7,4.25190994]
[1748861831522,8.0,2484.1,2483.7,4.02617884]
[1748861834120,3.56564347,2484.0,2483.6,5.8448292]
[1748861834515,3.56564347,2484.0,2483.7,4.02624583]
[1748861836441,3.56564347,2484.0,2483.7,4.02618406]
[1748861836936,3.56564347,2484.0,2483.6,4.02634285]
[1748861837138,3.56564347,2484.0,2483.6,5.09034285]
[1748861837322,3.56564347,2484.0,2483.7,4.02624306]
[1748861838499,3.56564347,2484.0,2483.8,4.02607816]
[1748861839526,0.41175593,2484.4,2484.1,4.02550734]
[1748861839725,8.0,2484.3,2484.1,4.02550396]
[1748861840024,8.0,2484.3,2483.7,8.90093646]
[1748861840025,3.56564347,2484.3,2483.7,4.02625115]
[1748861840324,3.56564347,2484.0,2483.9,4.0258551]
[1748861840490,3.56564347,2484.0,2483.8,4.02600038]
[1748861840692,3.56564347,2484.0,2483.7,4.02618192]
[1748861840922,0.8084,2484.1,2483.8,0.61124523]
[1748861841122,0.8084,2484.1,2483.7,5.09018192]
[1748861841770,0.8084,2484.1,2483.5,8.1314704]
[1748861841771,0.8084,2484.1,2483.5,4.02642787]
[1748861842078,0.8084,2484.1,2483.6,0.22581767]
[1748861842245,3.56564347,2483.8,2483.5,5.09042787]
[1748861842444,3.56564347,2483.8,2483.5,1.064]
[1748861842645,3.56564347,2483.6,2483.5,1.064]
[1748861847885,3.56564347,2483.8,2483.5,5.09057539]
[1748861848088,8.0,2483.7,2483.5,5.09057539]
[1748861848289,8.0,2483.7,2483.6,4.02641327]
[1748861848493,8.7686,2484.0,2483.6,4.02627099]
[1748861849064,3.56564347,2483.9,2483.6,4.02627099]
[1748861849790,3.56564347,2483.9,2483.5,5.84723859]
[1748861849989,3.56564347,2483.9,2483.6,0.22593556]
[1748861850167,3.56564347,2483.9,2483.5,5.84723859]
[1748861850492,3.56564347,2483.9,2483.6,0.22595511]
[1748861850690,3.56564347,2483.9,2483.4,4.02665237]
[1748861850984,3.56564347,2483.9,2483.5,4.63814238]
[1748861851156,3.56564347,2483.9,2483.5,4.02649651]
[1748861851591,3.56564347,2483.9,2483.6,0.22595553]
[1748861851786,3.56564347,2483.9,2483.5,4.02649651]
[1748861851988,8.0,2483.8,2483.6,0.22606166]
[1748861852292,8.0,2483.8,2483.5,4.02656333]
[1748861852588,8.0,2483.8,2483.6,0.22606585]
[1748861852797,0.7686,2484.0,2483.6,4.02630442]
[1748861853688,8.0,2483.8,2483.6,4.02630442]
[1748861854258,8.0,2483.8,2483.7,4.02625115]
[1748861854459,0.8283,2484.2,2483.7,4.02625115]
[1748861854460,8.0,2484.0,2483.7,0.22605354]
[1748861854656,8.0,2484.0,2483.6,4.02631478]
[1748861854858,8.0,2484.0,2483.7,4.0262033]
[1748861855552,0.8283,2484.2,2483.8,4.02608341]
[1748861855760,3.56564347,2484.1,2483.8,4.02608341]
[1748861856053,3.56564347,2484.1,2483.9,4.02591573]
[1748861856258,3.56564347,2484.1,2483.8,4.02600649]
[1748861856791,3.56564347,2484.1,2483.7,4.02617452]
[1748861857008,3.56564347,2484.1,2483.9,4.02584795]
[1748861857189,3.56564347,2484.1,2483.8,0.48177745]
[1748861857403,3.56564347,2484.1,2483.9,4.02577175]
[1748861857769,3.56564347,2484.1,2484.0,4.02576489]
[1748861858672,3.56564347,2484.1,2483.9,4.02584262]
[1748861859117,3.56564347,2484.1,2484.0,4.02576489]
[1748861859421,3.56564347,2484.1,2483.9,4.0258452]
[1748861864326,3.56564347,2484.1,2483.6,4.8966]
[1748861864327,3.56564347,2484.1,2483.6,0.7916]
[1748861864488,3.56564347,2483.7,2483.6,4.02641327]
[1748861864700,3.56564347,2483.7,2483.6,4.41211085]
[1748861864901,3.56564347,2483.7,2483.6,4.02641327]
[1748861866218,3.56564347,2483.7,2483.6,4.25241781]
[1748861866405,3.56564347,2483.7,2483.6,0.22600687]
[1748861866615,3.56564347,2483.7,2483.5,4.02656972]
[1748861867416,3.56564347,2483.7,2483.6,4.02641327]
[1748861867801,3.56564347,2483.7,2483.5,4.02648142]
[1748861868932,3.56564347,2483.7,2483.6,4.02641327]
[1748861869935,3.56564347,2483.7,2483.5,4.02648435]
[1748861870318,3.56564347,2483.7,2483.6,4.02641327]
[1748861871435,3.56564347,2483.7,2483.6,0.22602041]
[1748861871638,3.56564347,2483.7,2483.5,4.02648274]
[1748861872032,3.56564347,2483.7,2483.4,5.08965679]
[1748861872236,0.7656,2484.0,2483.4,5.08965679]
[1748861872237,3.56564347,2483.5,2483.4,5.08965679]
[1748861872540,0.7866,2483.4,2483.1,4.03706804]
[1748861872743,0.7866,2483.4,2483.2,0.61183306]
[1748861872744,3.56564347,2483.3,2483.2,0.61183306]
[1748861872918,8.7866,2483.2,2483.1,0.01]
[1748861873242,12.8916,2483.2,2483.1,0.01]
[1748861874119,13.28954504,2483.2,2483.1,0.01]
[1748861878670,13.83954504,2483.2,2483.1,0.01]
[1748861878960,13.83984504,2483.2,2483.1,0.01]
[1748861879244,15.94541633,2483.2,2483.1,0.01]
[1748861883742,18.36041633,2483.2,2483.1,0.01]
[1748861890367,18.36141633,2483.2,2483.1,0.01]
[1748861901195,14.25541633,2483.2,2483.1,0.01]
[1748861901402,18.36141633,2483.2,2483.1,0.01]
[1748861902197,10.50351633,2483.2,2483.1,0.01]
[1748861902403,12.50394504,2483.2,2483.1,0.01]
[1748861903912,14.91894504,2483.2,2483.1,0.01]
[1748861904121,12.50394504,2483.2,2483.1,0.01]
[1748861908612,12.50294504,2483.2,2483.1,0.01]
[1748861928656,13.25834504,2483.2,2483.1,0.01]
[1748861928828,14.94074389,2483.2,2483.1,0.01]
[1748861933451,14.18434389,2483.2,2483.1,0.01]
[1748861934456,16.59934389,2483.2,2483.1,0.01]
[1748861934653,14.18434389,2483.2,2483.1,0.01]
[1748861938467,12.50194504,2483.2,2483.1,0.01]
[1748861940137,8.39794504,2483.2,2483.1,0.01]
[1748861940333,12.50194504,2483.2,2483.1,0.01]
[1748861943472,0.7966,2483.6,2483.1,0.01]
[1748861943774,10.295,2483.9,2483.7,4.02614555]
[1748861943775,3.56564347,2483.9,2483.7,4.02614555]
[1748861943948,3.56564347,2483.9,2483.6,0.8165]
[1748861943949,7.66964347,2483.9,2483.6,0.8165]
[1748861944132,11.56564347,2483.7,2483.6,0.8165]
[1748861944961,8.0,2483.7,2483.6,4.84291327]
[1748861945135,8.0,2483.7,2483.6,0.8165]
[1748861945335,8.0,2483.7,2483.6,4.84291327]
[1748861945960,8.0,2483.7,2483.6,0.8165]
[1748861946155,11.56564347,2483.7,2483.6,0.8165]
[1748861955091,11.56564347,2483.7,2483.4,4.8405592]
[1748861956186,3.56564347,2483.5,2483.4,0.8139]
[1748861957295,3.56564347,2483.5,2483.3,1.062]
[1748861957692,3.56564347,2483.5,2483.3,5.08888708]
[1748861958259,7.66764347,2483.5,2483.3,5.08888708]
[1748861958458,7.66764347,2483.5,2483.4,4.02673753]
[1748861959058,3.56564347,2483.5,2483.4,4.02673753]
[1748861960410,15.66764347,2483.7,2483.5,4.0264696]
[1748861961200,15.66764347,2483.7,2483.4,4.81726539]
[1748861961375,3.56564347,2483.5,2483.4,4.81726539]
[1748861966728,8.80454066,2483.5,2483.3,1.062]
[1748861967611,8.80454066,2483.5,2483.3,5.08881114]
[1748861967799,15.66664347,2483.5,2483.4,4.02673753]
[1748861967969,15.66664347,2483.5,2483.3,5.08880108]
[1748861969109,15.66664347,2483.5,2483.4,4.02673753]
[1748861969778,11.56564347,2483.5,2483.3,5.89001195]
[1748861970105,11.56564347,2483.5,2483.3,5.89000817]
[1748861971309,11.56564347,2483.5,2483.3,1.8632]
[1748861971613,11.56564347,2483.5,2483.3,5.8900846]
[1748861976699,11.56564347,2483.5,2483.3,1.8632]
[1748861976899,11.56564347,2483.5,2483.4,4.25303597]
[1748861977437,11.56564347,2483.5,2483.3,5.89001177]
[1748861977631,11.56564347,2483.5,2483.4,0.22629789]
[1748861977805,11.56564347,2483.5,2483.4,0.22629746]
[1748861978109,11.56564347,2483.5,2483.3,5.89001177]
[1748861978536,11.56564347,2483.5,2483.4,0.22629773]
[1748861978740,11.56564347,2483.5,2483.4,0.2263028]
[1748861979337,11.56564347,2483.5,2483.4,0.22630184]
[1748861979636,11.56564347,2483.5,2483.3,5.89001177]
[1748861980694,11.56564347,2483.5,2483.4,0.22630366]
[1748861980902,11.56564347,2483.5,2483.3,5.89001177]
[1748861983240,11.56564347,2483.5,2483.3,5.89006202]
[1748861983453,11.56564347,2483.5,2483.4,0.22631359]
[1748861983820,11.56564347,2483.5,2483.4,0.22632045]
[1748861984214,11.56564347,2483.5,2483.3,5.89002047]
[1748861984543,11.56564347,2483.5,2483.3,5.89009957]
[1748861984915,11.56564347,2483.5,2483.4,0.22633238]
[1748861985123,11.56564347,2483.5,2483.4,0.22633242]
[1748861985322,11.56564347,2483.5,2483.4,0.22633234]
[1748861985621,11.56564347,2483.5,2483.4,4.02673753]
[1748861985943,11.56564347,2483.5,2483.4,0.2263396]
[1748861986105,11.56564347,2483.5,2483.4,4.25307566]
[1748861986442,3.56564347,2483.9,2483.4,4.02673753]
[1748861986742,8.0,2483.6,2483.5,4.25285516]
[1748861986927,8.0,2483.6,2483.5,4.2528556]
[1748861987129,8.0,2483.6,2483.5,0.22634271]
[1748861988144,8.0,2483.6,2483.4,4.02663485]
[1748861988308,3.56564347,2483.5,2483.4,4.02663485]
[1748861988511,3.56564347,2483.5,2483.4,4.63918257]
[1748861988708,3.56564347,2483.5,2483.4,4.63918228]
[1748861988922,3.56564347,2483.5,2483.4,4.63918195]
[1748861989132,3.56564347,2483.5,2483.4,4.6391888]
[1748861989939,3.56564347,2483.5,2483.4,4.63918367]
[1748861990245,3.56564347,2483.5,2483.4,4.41286869]
[1748861990426,3.56564347,2483.5,2483.4,4.63918225]
[1748861990746,3.56564347,2483.5,2483.4,4.41286869]
[1748861991249,3.56564347,2483.5,2483.4,4.63918266]
[1748861991542,3.56564347,2483.5,2483.4,4.63918827]
[1748861992119,3.56564347,2483.5,2483.4,4.63918574]
[1748861992320,3.56564347,2483.5,2483.4,4.63918517]
[1748861992523,3.56564347,2483.5,2483.4,4.63918568]
[1748861992818,3.56564347,2483.5,2483.4,4.41286869]
[1748861993032,8.0,2483.6,2483.5,4.02651385]
[1748861993233,8.0,2483.6,2483.5,0.22631404]
[1748861993570,8.0,2483.6,2483.3,5.88899672]
[1748861993775,11.56564347,2483.5,2483.4,0.22632554]
[1748861993915,11.56564347,2483.5,2483.3,1.061]
[1748861993916,14.01299782,2483.5,2483.3,1.061]
[1748861994267,14.01299782,2483.5,2483.2,4.02706079]
[1748861994476,10.44735435,2483.5,2483.3,0.22633661]
[1748861994614,3.56564347,2483.3,2483.1,4.03715513]
[1748861995041,3.56564347,2483.3,2483.2,0.2263349]
[1748861995636,3.56564347,2483.3,2483.1,4.03715513]
[1748861995843,3.56564347,2483.3,2483.2,0.22632616]
[1748861996039,3.56564347,2483.3,2483.2,0.61258918]
[1748861996244,3.56564347,2483.3,2483.2,4.02706185]
[1748861996734,3.56564347,2483.3,2483.2,4.63964935]
[1748861996936,3.56564347,2483.3,2483.2,0.2263256]
[1748861997256,3.56564347,2483.3,2483.2,4.25338745]
[1748861997555,3.56564347,2483.3,2483.2,4.63965221]
[1748861997742,3.56564347,2483.3,2483.2,4.25337846]
[1748861998055,3.56564347,2483.3,2483.2,4.25337854]
[1748861998255,3.56564347,2483.3,2483.2,4.02706185]
[1748861998556,3.56564347,2483.3,2483.1,4.03714209]
[1748861998755,3.56564347,2483.3,2483.2,4.02706185]
[1748861999767,3.56564347,2483.3,2483.1,4.03721087]
[1748862000071,3.56564347,2483.3,2483.2,4.41331606]
[1748862000377,8.0,2483.5,2483.4,4.02673753]
[1748862000527,8.0,2483.7,2483.4,4.02673753]
[1748862000729,8.0,2483.7,2483.6,4.02633572]
[1748862000965,8.0,2483.7,2483.6,4.25261601]
[1748862001255,8.0,2483.7,2483.5,4.02648446]
[1748862001461,11.56564347,2483.6,2483.5,4.02648446]
[1748862001759,11.56564347,2483.6,2483.5,4.2527552]
[1748862001957,11.56564347,2483.6,2483.5,0.22627074]
[1748862002133,12.72220782,2483.6,2483.3,4.02683743]
[1748862002337,3.56564347,2483.4,2483.3,4.02683743]
[1748862002537,3.56564347,2483.4,2483.3,4.41303262]
[1748862002931,3.56564347,2483.4,2483.3,4.63930861]
[1748862003137,3.56564347,2483.4,2483.3,0.61247977]
[1748862003560,3.56564347,2483.4,2483.3,4.25318426]
[1748862003762,3.56564347,2483.4,2483.3,4.41310063]
[1748862003980,3.56564347,2483.4,2483.3,0.61248559]
[1748862004129,4.72220782,2483.4,2483.3,0.38620095]
[1748862004328,4.72220782,2483.4,2483.1,4.03715942]
[1748862004562,4.72220782,2483.4,2483.2,0.38622064]
[1748862004861,4.72220782,2483.4,2483.1,4.03715942]
[1748862005065,4.72220782,2483.4,2483.2,0.38622304]
[1748862005262,4.72220782,2483.4,2483.1,4.03715942]
[1748862005422,3.56564347,2483.4,2483.2,0.61251181]
[1748862005627,3.56564347,2483.4,2483.1,4.03715942]
[1748862005855,3.56564347,2483.4,2483.2,0.38621887]
[1748862006067,3.56564347,2483.4,2483.1,4.03715942]
[1748862006366,3.56564347,2483.4,2483.2,0.22628124]
[1748862006569,3.56564347,2483.2,2483.1,0.01]
[1748862007829,3.56564347,2483.2,2483.1,0.23628854]
[1748862008035,4.099,2483.3,2483.1,0.01]
[1748862008469,12.099,2483.3,2483.1,0.01]
[1748862008639,12.099,2483.3,2483.1,4.03708224]
[1748862009667,12.099,2483.3,2483.1,0.01]
[1748862009868,12.099,2483.3,2483.1,4.03722264]
[1748862010272,12.099,2483.3,2483.1,0.01]
[1748862011343,3.56564347,2483.2,2483.1,0.01]
[1748862011868,3.56564347,2483.2,2483.1,0.23621807]
[1748862012273,3.56564347,2483.2,2483.1,0.23621799]
[1748862012772,3.56564347,2483.2,2483.1,0.23621822]
[1748862013170,3.56564347,2483.2,2483.1,0.01]
[1748862013640,5.37754625,2483.2,2483.1,0.01]
[1748862015173,13.37754625,2483.2,2483.1,0.01]
[1748862015472,17.87497893,2483.2,2483.1,0.01]
[1748862016967,18.62967893,2483.2,2483.1,0.01]
[1748862017175,10.96503546,2483.2,2483.1,0.01]
[1748862017406,0.69203628,2484.3,2483.1,0.01]
[1748862017407,0.7547,2483.5,2483.1,0.01]
[1748862017608,8.0,2483.6,2483.2,4.02700919]
[1748862017758,8.0,2483.6,2483.5,4.02657539]
[1748862017958,4.38084347,2483.9,2483.6,4.02640016]
[1748862018208,4.38084347,2483.9,2483.2,4.82113107]
[1748862018209,4.099,2483.8,2483.5,4.0264791]
[1748862018367,8.0,2483.7,2483.5,4.0264791]
[1748862018694,3.56564347,2483.7,2483.4,4.02665239]
[1748862023714,3.56564347,2483.5,2483.2,5.88107359]
[1748862023918,3.56564347,2483.3,2483.2,5.08697359]
[1748862024111,4.098,2483.5,2483.4,4.02673753]
[1748862024512,3.56564347,2483.7,2483.4,4.02673753]
[1748862024711,7.66364347,2483.7,2483.4,4.83023753]
[1748862025102,10.08064347,2483.7,2483.4,4.83023753]
[1748862025306,7.66364347,2483.7,2483.4,4.83023753]
[1748862028046,3.56564347,2483.7,2483.4,4.83023753]
[1748862028325,10.417,2484.0,2483.4,4.83023753]
[1748862028326,8.0,2484.0,2483.9,4.02582157]
[1748862029193,8.0,2484.0,2483.8,4.02599805]
[1748862029424,8.0,2483.8,2483.7,4.82679003]
[1748862032655,8.0,2483.8,2483.7,0.8006]
[1748862032856,8.0,2483.8,2483.6,4.02632244]
[1748862033348,3.56564347,2483.7,2483.5,1.06]
[1748862033549,3.56564347,2483.7,2483.5,5.08654609]
[1748862034862,3.56564347,2483.7,2483.3,0.7675]
[1748862035055,3.56564347,2483.5,2483.3,1.06]
[1748862035210,3.56564347,2483.5,2483.2,4.0269949]
[1748862035211,3.56564347,2483.5,2483.2,4.02705161]
[1748862035555,3.56564347,2483.3,2483.2,4.02705161]
[1748862035749,3.56564347,2483.3,2483.1,5.90002869]
[1748862035940,3.56564347,2483.3,2483.1,5.85002869]
[1748862036454,3.56564347,2483.3,2483.2,4.02706185]
[1748862037152,3.56564347,2483.3,2483.1,1.06]
[1748862037665,3.56564347,2483.3,2482.9,4.02749423]
[1748862037666,3.92220782,2483.3,2482.9,4.02754024]
[1748862037966,3.56564347,2483.1,2483.0,4.02738622]
[1748862038139,3.56564347,2483.1,2482.9,5.08647608]
[1748862038523,3.56564347,2483.1,2483.0,4.02738622]
[1748862040657,4.78676425,2483.1,2482.8,1.059]
[1748862040864,3.56564347,2482.9,2482.8,4.02771064]
[1748862041165,3.56564347,2482.9,2482.7,5.08679795]
[1748862042181,3.56564347,2482.9,2482.7,1.059]
[1748862042331,0.35656435,2482.8,2482.7,1.059]
[1748862042761,3.56564347,2482.9,2482.7,1.059]
[1748862043930,3.56564347,2482.9,2482.6,8.698]
[1748862044141,3.56564347,2482.7,2482.6,8.698]
[1748862045268,0.7657,2482.8,2482.6,12.72603512]
[1748862045657,11.96390527,2482.9,2482.6,12.72603512]
[1748862045994,1.68389053,2482.8,2482.6,12.72603512]
[1748862046130,11.56564347,2482.9,2482.7,4.02787288]
[1748862046503,4.24,2484.4,2482.6,13.47750894]
[1748862046773,3.56564347,2483.6,2483.3,4.02677513]
[1748862046948,3.56564347,2483.6,2483.2,4.0269767]
[1748862047346,3.56564347,2483.4,2483.2,4.0269767]
[1748862047871,3.56564347,2483.4,2483.1,1.059]
[1748862048036,3.56564347,2483.4,2483.2,4.02699144]
[1748862048652,0.39771559,2483.6,2483.4,4.02666803]
[1748862048840,8.0,2483.6,2483.4,4.02664106]
[1748862049035,8.0,2483.6,2483.5,4.02657539]
[1748862049741,8.0,2483.6,2483.4,4.02657769]
[1748862049941,8.0,2483.6,2483.3,4.02683002]
[1748862050164,3.56564347,2483.6,2483.2,4.83837896]
[1748862050375,8.7635,2483.9,2483.3,1.059]
[1748862050376,3.56564347,2483.4,2483.3,1.059]
[1748862050740,3.56564347,2483.4,2483.3,5.08589968]
[1748862052364,3.56564347,2483.6,2483.3,5.08589968]
[1748862052564,3.56564347,2483.6,2483.3,1.059]
[1748862053154,3.56564347,2483.6,2483.3,5.08575781]
[1748862054056,8.0,2483.7,2483.3,1.059]
[1748862054260,8.0,2483.7,2483.5,4.02649784]
[1748862054487,8.0,2483.7,2483.4,4.02667371]
[1748862055085,8.0,2483.5,2483.4,4.02667371]
[1748862055274,8.0,2483.5,2483.3,5.08584066]
[1748862055969,8.0,2483.5,2483.3,1.059]
[1748862056176,8.0,2483.5,2483.3,5.08577303]
[1748862058395,8.0,2483.5,2483.4,4.02673753]
[1748862058601,8.0,2483.5,2483.3,5.08580343]
[1748862059167,8.0,2483.5,2483.4,4.02673753]
[1748862059508,8.0,2483.7,2483.5,4.02649172]
[1748862059707,3.56564347,2483.6,2483.3,1.059]
[1748862060001,3.56564347,2483.6,2483.4,4.02665491]
[1748862060194,3.56564347,2483.6,2483.3,5.08582009]
[1748862060372,3.56564347,2483.6,2483.3,1.059]
[1748862060563,3.56564347,2483.4,2483.2,1.059]
[1748862060768,3.56564347,2483.4,2483.2,5.08605186]
[1748862061267,3.56564347,2483.4,2483.2,1.059]
[1748862061469,4.40841782,2483.4,2483.2,1.059]